Cogmind - Beta 16.1 *** ADVENTURER MODE // 2026.03.24 @ 09:45:11 Player: Arzee Result: Self-destructed Performance ------------- Evolutions (1) 500 Regions Visited (3) 600 Robots Destroyed (13) 65 Value Destroyed (296) 296 Prototype IDs (2) 40 Alien Tech Used (0) 0 Bonus (0) 0 TOTAL SCORE: 1501 Bonus ------- None Cogmind --------- Core Integrity 210/400 Matter 206/300 Energy 100/100 System Corruption 0% Temperature Cool (0) Movement Core (50) Location -9/Mines Parts ------- > --- POWER (2) -------- (None) > --- PROPULSION (3) --- (None) > --- UTILITY (2) ------ Cooling System > --- WEAPON (2) ------- (None) > --- INVENTORY (5) ---- Flight Unit Improved Assault Rifle Peak State ------------ > --- POWER ------------ Light Ion Engine > --- PROPULSION ------- Hover Unit Hover Unit > --- UTILITY ---------- Cooling System > --- WEAPON ----------- Improved Medium Laser Improved Assault Rifle > --- INVENTORY -------- Wheel Flight Unit Light Assault Rifle Light Assault Rifle Grenade Launcher [Rating: 11] Favorites ----------- Power Light Ion Engine Engine Light Ion Engine Propulsion Wheel Wheel Wheel Hover Unit Hover Unit Flight Unit Flight Unit Utility Cooling System Device Cooling System Weapon Light Assault Rifle Energy Gun Improved Medium Laser Ballistic Gun Light Assault Rifle Launcher Grenade Launcher Build | -11 -10 -9 -9 ------- Run | Yrd Mat Mat Min Slots Evolved 2 | . . 2 . Power 1 | . . 1 . Propulsion 1 | . . 1 . Utility . | . . . . Weapon . | . . . . Parts Attached 15 | 5 . 7 3 Power 2 | 1 . 1 . Engine 2 | 1 . 1 . Core . | . . . . Reactor . | . . . . Propulsion 5 | 2 . 2 1 Treads . | . . . . Leg . | . . . . Wheel 2 | 2 . . . Hover 2 | . . 2 . Flight 1 | . . . 1 Utility 1 | . . 1 . Device 1 | . . 1 . Storage . | . . . . Processor . | . . . . Hackware . | . . . . Protection . | . . . . Artifact . | . . . . Weapon 7 | 2 . 3 2 Energy Gun 1 | . . 1 . Energy Cannon . | . . . . Ballistic Gun 5 | 2 . 2 1 Ballistic Cannon . | . . . . Launcher 1 | . . . 1 Special Weapon . | . . . . Impact Weapon . | . . . . Slashing Weapon . | . . . . Piercing Weapon . | . . . . Special Melee Weapon . | . . . . Unidentified Prototypes 2 | . . 2 . Parts Lost 6 | . . 2 4 Power 2 | . . 1 1 Propulsion 2 | . . 1 1 Utility . | . . . . Weapon 2 | . . . 2 Highest Loss Streak 4 | . . 1 4 To Critical Strikes . | . . . . Average Backups 2 | . 1 3 2 Power . | . . . . Propulsion 1 | . . 1 1 Utility . | . . . . Weapon 1 | . . 1 1 Tool/Special . | . . . . Unused Backups . | . . . . Power . | . . . . Propulsion . | . . . . Utility . | . . . . Weapon . | . . . . Tool/Special . | . . . . Average Slot Usage (%) 60 | . 71 59 48 Engine 11 | . 14 10 9 Wheel 12 | . 28 8 . Hover 7 | . . 12 8 Device 5 | . . 5 11 Ballistic Gun 23 | . 28 22 19 Peak Build Rating 11 | 5 5 11 10 Average Rating 6 | 2 5 6 8 On Entrance 5 | . 5 5 10 Avg Prop Armor Cover (%) . | . . . . Naked Turns . | . . . . Heaviest Build 11 | 5 5 11 11 Greatest Support 20 | 20 20 20 6 Greatest Overweight (x) 2 | . . 1 2 Average Overweight (x) . | . . . . Largest Inventory Capacity 5 | 5 5 5 5 Average Capacity 5 | 5 5 5 5 Most Carried 5 | 4 3 5 3 Average Carried 2 | . 1 3 2 Final Capacity 5 | 5 5 5 5 Final Carried 3 | . 3 3 2 Class Distribution -------------------- 100% | Mutant Dominant Class ---------------- Mutant | -10/Materials Mutant | -9/Materials Mutant | -9/Mines Resources | -11 -10 -9 -9 ----------- Run | Yrd Mat Mat Min Matter Collected 417 | 252 10 149 6 Remotely . | . . . . Salvage Created 445 | 30 58 283 74 Parts 27 | 4 7 16 . Haulers Intercepted . | . . . . Recyclers Shooed 1 | . . . 1 Parts Field Recycled . | . . . . Retrieved Matter . | . . . . Parts Self-Destructed . | . . . . Prevented . | . . . . Parts Restored . | . . . . Kills | -11 -10 -9 -9 ------- Run | Yrd Mat Mat Min Combat Hostiles Destroyed 17 | 1 3 5 8 Guns 15 | 1 3 5 6 AOE 2 | . . . 2 Classes Destroyed 7 | 1 2 3 1 Worker 1 | . . 1 . Builder 1 | . . 1 . Watcher 2 | . 1 1 . Swarmer 3 | . 3 . . Grunt 5 | 1 . 4 . Sentry 1 | . . 1 . Assembled 8 | . . . 8 Best Kill Streak 8 | 1 3 3 8 Combat Bots Only 8 | 1 3 2 8 Max Kills in Single Turn 2 | 1 1 1 2 Gunslinging 1 | . . . 1 Exploded 1 | . . . 1 Melee . | . . . . Uniques/NPCs Destroyed . | . . . . Combat | -11 -10 -9 -9 -------- Run | Yrd Mat Mat Min Hostile Shots Fired 95 | 1 5 37 52 Missed 29 | 1 1 8 19 Hits 66 | . 4 29 33 Melee 8 | . . . 8 Projectile 58 | . 4 29 25 Critical Strikes 5 | . . 3 2 Part Disruptions 1 | . . . 1 Damage Taken 865 | . 26 317 522 Core 195 | . 5 77 113 Absorbed by Shields . | . . . . Ignored by Resistances 249 | . 8 93 148 Core Remaining (%) 99 | 100 98 . . Volleys Fired 49 | 1 5 30 13 Largest 2 | 2 2 2 2 Hottest 53 | 40 40 46 53 Shots Fired 94 | 2 10 60 22 Gun 92 | 2 10 60 20 Cannon . | . . . . Launcher 2 | . . . 2 Special . | . . . . Kinetic 92 | 2 10 60 20 Thermal . | . . . . Explosive 2 | . . . 2 Electromagnetic . | . . . . Robot Hit Streak 16 | 2 4 16 8 Robot Miss Streak 1 | . 1 1 1 Penetration Max . | . . . . Secondary Targets 2 | . 1 . 1 Max Gunslinging Chain 1 | . 1 . 1 Shots Hit Robots 72 | 2 7 46 17 Core Hits 35 | 2 6 17 10 Critical Kills . | . . . . Critical Parts Destroyed . | . . . . Critical Strikes . | . . . . Melee Attacks . | . . . . Impact . | . . . . Slashing . | . . . . Piercing . | . . . . Sneak Attacks . | . . . . Combat Hostiles . | . . . . Follow-up Attacks . | . . . . Damage Inflicted 961 | 18 53 429 461 Guns 750 | 18 53 429 250 Cannons . | . . . . Explosions 211 | . . . 211 Melee . | . . . . Ramming . | . . . . Kinetic 750 | 18 53 429 250 Thermal . | . . . . Explosive 211 | . . . 211 Electromagnetic . | . . . . Impact . | . . . . Slashing . | . . . . Piercing . | . . . . Highest Corruption . | . . . . Average Corruption . | . . . . Corruption Purged . | . . . . Corruption Blocked . | . . . . Overload Shots . | . . . . Overflow Damage 30 | . . . 30 Projectiles . | . . . . Explosions 30 | . . . 30 Melee . | . . . . Knockbacks . | . . . . Impact . | . . . . Kinetic . | . . . . Secondary . | . . . . Self-Inflicted Damage 54 | . . . 54 Shots 2 | . . . 2 Rammed . | . . . . Targets Rammed . | . . . . Kicked . | . . . . Crushed . | . . . . Highest Temperature 27 | . . 10 27 Average Temperature 6 | . . 5 27 Received Heat Transfer 392 | . . 252 140 Siege Activations . | . . . . Martial Activations . | . . . . Shielding Activations . | . . . . Robots Disrupted . | . . . . Combat Hostiles . | . . . . Robots Corrupted . | . . . . Combat Hostiles . | . . . . Parts Fried . | . . . . Impact Corruptions . | . . . . Robots Melted . | . . . . Combat Hostiles . | . . . . Parts Melted . | . . . . Heat Transferred . | . . . . Parts Sabotaged . | . . . . Parts Stolen . | . . . . Parts Stripped . | . . . . Power Chain Reactions . | . . . . Alert | -11 -10 -9 -9 ------- Run | Yrd Mat Mat Min Maximum Alert Level . | . . . . Low Security (%) 100 | 100 100 100 100 Level 1 . | . . . . Level 2 . | . . . . Level 3 . | . . . . Level 4 . | . . . . Level 5 . | . . . . High Security . | . . . . Max Security . | . . . . Peak Influence 60 | 20 60 57 12 Initial 12 | . 11 6 12 Average 17 | 3 26 24 2 Influence Increases 256 | 20 77 147 12 Destroy 0b10 Robot/C 180 | 20 60 100 . Destroy 0b10 Robot/NC 20 | . 5 15 . Destroy Leader 44 | . 12 32 . Destroy Structure 12 | . . . 12 Influence Decreases 256 | . 80 127 49 Entered New Map 45 | . 9 11 25 Time Decay 179 | . 71 96 12 Lost Part 32 | . . 20 12 Squads Dispatched 1 | . . 1 . Investigation 1 | . . 1 . Extermination . | . . . . Reinforcement . | . . . . Assault . | . . . . Garrison . | . . . . Intercept . | . . . . Searches Triggered . | . . . . Construction Impeded . | . . . . Haulers Reinforced . | . . . . Active Scanning Responses . | . . . . Cargo Convoy Interrupts . | . . . . Stealth | -11 -10 -9 -9 --------- Run | Yrd Mat Mat Min Distress Signals . | . . . . Communications Jammed . | . . . . Distress Signals . | . . . . Times Spotted 45 | 1 4 9 31 Peak Tracking Total 18 | . 3 3 18 Tactical Retreats 2 | . . . 2 Traps | -11 -10 -9 -9 ------- Run | Yrd Mat Mat Min Traps Triggered . | . . . . Indirectly . | . . . . Trap Hack Attempts . | . . . . Triggered . | . . . . Disarmed 6 | . 6 . . Reprogrammed . | . . . . Reused . | . . . . Traps Extracted . | . . . . Installed . | . . . . Triggered . | . . . . Machines | -11 -10 -9 -9 ---------- Run | Yrd Mat Mat Min Machines Disabled . | . . . . Max in Single Turn . | . . . . Machines Repaired . | . . . . Machines Dismantled . | . . . . Machines Sabotaged . | . . . . Overloaded Fab Kills . | . . . . Hacking | -11 -10 -9 -9 --------- Run | Yrd Mat Mat Min Machines Accessed 5 | . 4 1 . Terminals 4 | . 4 . . Fabricators . | . . . . Repair Stations . | . . . . Recycling Units 1 | . . 1 . Scanalyzers . | . . . . Garrison Access . | . . . . Total Hacks 11 | . 8 3 . Successful 7 | . 4 3 . Failed 4 | . 4 . . Catastrophic 1 | . 1 . . Database Lockouts . | . . . . Manual . | . . . . Terminals 8 | . 8 . . Fabricators . | . . . . Repair Stations . | . . . . Recycling Units 3 | . . 3 . Scanalyzers . | . . . . Garrison Access . | . . . . Terminal Hacks 4 | . 4 . . Record 1 | . 1 . . Robot Analysis 1 | . 1 . . Disarm Traps 1 | . 1 . . Hauler Manifests 1 | . 1 . . Fabricator Hacks . | . . . . Repair Station Hacks . | . . . . Recycling Unit Hacks 3 | . . 3 . Recycle Component 1 | . . 1 . Process 1 | . . 1 . Report Inventory 1 | . . 1 . Scanalyzer . | . . . . Garrison Access Hacks . | . . . . Unauthorized Hacks . | . . . . Terminals . | . . . . Fabricators . | . . . . Repair Stations . | . . . . Recycling Units . | . . . . Scanalyzers . | . . . . Garrison Access . | . . . . Data Cores Recovered . | . . . . Used . | . . . . Hacking Detections 4 | . 3 1 . Full Trace Events 1 | . . 1 . Feedback Events . | . . . . Feedback Blocked . | . . . . Robot Schematics Acquired . | . . . . Robots Built . | . . . . Authchips . | . . . . Time . | . . . . Total Robot Build Rating . | . . . . Part Schematics Acquired . | . . . . Parts Built . | . . . . Authchips . | . . . . Time . | . . . . Total Part Build Rating . | . . . . Part Studies Acquired . | . . . . Parts Repaired . | . . . . Time . | . . . . Parts Recycled 1 | . . 1 . Recycled Matter 15 | . . 15 . Retrieved Matter . | . . . . Retrieved Components . | . . . . Parts Scanalyzed . | . . . . Part Schematics Acquired . | . . . . Parts Damaged . | . . . . Bothacking | -11 -10 -9 -9 ------------ Run | Yrd Mat Mat Min Used RIF Installer . | . . . . Robots Hacked . | . . . . Non-combat . | . . . . Combat . | . . . . Robot Hacks Applied . | . . . . Relay Couplers Released . | . . . . Fabnet Peak Effective % . | . . . . Robots Rewired . | . . . . Allies Hacked . | . . . . Hacks Repelled . | . . . . Allies | -11 -10 -9 -9 -------- Run | Yrd Mat Mat Min Total Allies . | . . . . Largest Group . | . . . . Highest-Rated Group . | . . . . Highest-Rated Ally . | . . . . Total Orders . | . . . . Ally Attacks . | . . . . Total Damage . | . . . . Kills . | . . . . Allies Corrupted . | . . . . Allies Melted . | . . . . Intel | -11 -10 -9 -9 ------- Run | Yrd Mat Mat Min Active Infowar (turns) . | . . . . Robot Analysis Total 1 | . 1 . . Derelict Logs Recovered . | . . . . Drone Launches . | . . . . Drone Recoveries . | . . . . Exploration | -11 -10 -9 -9 ------------- Run | Yrd Mat Mat Min Turns Passed 614 | 50 189 221 154 Spaces Moved 576 | 60 215 192 109 Core 64 | 34 . . 30 Treads . | . . . . Legs . | . . . . Wheels 300 | 26 215 59 . Hover 212 | . . 133 79 Flight . | . . . . Fastest Speed 50 | 50 80 56 50 Average Speed 77 | 63 80 64 103 Slowest Speed 150 | 80 80 120 150 Overloaded Moves . | . . . . Propulsion Burnouts . | . . . . Robots Hopped . | . . . . Potential Cave-ins . | . . . . Cave-ins Triggered . | . . . . Exploration Rate (%) 23 | 5 46 19 23 Regions Visited 3 Branch Regions 1 Pre-discovered Areas . | . . . . Known Exits Taken . | . . . . Unknown Exits Taken 3 | 1 1 1 . Scrap Searched . | . . . . Spaces Dug . | . . . . Terrain Destroyed 17 | . . . 17 Melee . | . . . . Projectile . | . . . . AOE 17 | . . . 17 Terrain Rammed . | . . . . Walls Destroyed . | . . . . Machines Disabled . | . . . . Actions | -11 -10 -9 -9 --------- Run | Yrd Mat Mat Min Total 659 | 70 223 240 126 Wait 2 | . 1 1 . Move 573 | 59 214 191 109 Hop . | . . . . Pick Up 14 | 5 3 6 . Fast Attach 1 | . . 1 . Attach 9 | 5 . 3 1 Detach 1 | . . 1 . Swap 6 | . . 3 3 Drop 4 | . . 4 . Fire 49 | 1 5 30 13 Melee . | . . . . Ram . | . . . . Kick . | . . . . Crush . | . . . . Escape Stasis . | . . . . Rewire . | . . . . Trap . | . . . . Miscellaneous . | . . . . Route ------- -11/Scrapyard -10/Materials -9/Materials -9/Mines (discovered 1 exit: [*Zio]) History --------- Turn | Location | Event 2 | -11/Scrapyard | Met Revision 17 38 | -11/Scrapyard | Discovered new exit (range 8) 51 | -11/Scrapyard | Entered Materials 224 | -10/Materials | Discovered new exit (range 16) 240 | -10/Materials | Entered another Materials area 240 | -9/Materials | Evolved 2 slots: Power x1, Propulsion x1 318 | -9/Materials | Build established: Mutant 456 | -9/Materials | Discovered new exit (range 8) 461 | -9/Materials | Entered Mines 462 | -9/Mines | A Derelict revealed a hidden shortcut to a safe place 504 | -9/Mines | Met a Derelict bent on vengeance 533 | -9/Mines | Assembled infested the area 615 | -9/Mines | Self-destructed Last Messages --------------- as-17909 destroyed. Imp. Assault Rifle severed. as-73896 destroyed. as-21263 destroyed. Knocked back. Destroyed Asb. Hover Unit. as-88781 destroyed. Hover Unit destroyed. Destroyed Hover Unit. Acquired 6 matter. Knocked back. Critical hit (Burn: +80). as-39913 destroyed. Grenade Launcher destroyed. The unstable cave ceiling collapses. as-50838 destroyed. R-06 Scavenger destroyed. Lgt. Ion Engine destroyed. as-36884 destroyed. Imp. Assault Rifle destroyed. Map ----- +----------------------------------------------------+ | ??????????????????????????????????????????????? | | # #??????????????????????????????????????????????? | | # #??????????????????????????????????????????????? | | # ##?????????????????????????????????????????????? | | # ##????????????????????????????????????????????? | | #??##???###??????????????????????????????????? | | ##?# #### #??????????????????????????????????? | | % %#### ??????????????????????????????????? | | %* ##?????????????????????????????????? | | =%! %% # #?????????????????????????????????? | | ##### ##?????????????????????????????????? | | ## #??## #?????????????????????????????????? | | ?# #??## # #?????####????????????????????????? | | ?# #???#?## ####?## ##???????????????????????? | | ?# #??????# ### #???????????????????????? | | ## #??????## ## ## #???????????????????????? | | #???????## ## #? ##### #?????????????????? | | #????????# ## #?# ???????????????????? | | ####????????# ## ### #???????????????????????? | | #???????????# a #???????????????????????? | | #???????????######## #???????????????????????? | | #??????????????????# ##???????????????????????? | | #??????????????????# ##???????????????????????? | | #??????????????????# #???????????????????????? | | #####??????????????## ##??????????????????????? | | ## #???????????????## @##?????????????????????? | | #????????????????## ##????????????????????? | | #???????###???????# ##???????????????????? | | ## ###??## ##??????# #???????????????????? | | ### #### #??????# #???????????????????? | | #?# ## > #??????## ##???????????????????? | | #??# #????????#####????????????????????? | | #??## #?????????????????????????????????? | | #???## #?????????????????????????????????? | | #????## ##?????????????????????????????????? | | ########## ###??????????????????????????????????? | | # ## #????????????????????????????????????? | | # ## #????????????????????????????????????? | | # """ ## #????????????????????????????????????? | | """ #????????????????????????????????????? | | ## """ ####????????????????????????????????????? | | ?# #???????????????????????????????????????? | | ?#########???????????????????????????????????????? | | ?????????????????????????????????????????????????? | | ?????????????????????????????????????????????????? | | ?????????????????????????????????????????????????? | | ?????????????????????????????????????????????????? | | ?????????????????????????????????????????????????? | | | | | +----------------------------------------------------+ Best States ------------- Heat Dissipation 50 Energy Generation 10 Energy Capacity 125 Matter Stores 300 Matter Capacity 300 Sight Range 16 Terrain Scan Density 10 Resistance: KI 20 Resistance: TH 20 Resistance: EX 20 Resistance: EM 20 Resistance: I 20 Resistance: S 20 Resistance: P 20 Evasion (%) 53 Offensive Hacking 10 Item Schematics ----------------- None Robot Schematics ------------------ None Fabricated ------------ Nothing Repaired ---------- Nothing Studied --------- None Alien Tech Used ----------------- None Achievements -------------- Shopping List Challenges ------------ None Game ------ Seed DamperCommInterrupter Manual? 0 Play Time 00:16:51 Cumulative 0.3 hours Start 2026.03.24 @ 09:31:13 End 2026.03.24 @ 09:45:11 Sessions 1 Manual Loads 0 Difficulty Adventurer Special Mode None Game No. 3 Rogue 0 Adventurer 3 Explorer 0 Win Type - Total 0 Types 0/0/0/0/0/0/0/0/0/0 Lore% 1 Gallery% 3 Achievement% 5 Wizard Run 0 Options --------- Layout 1 ASCII 0 Keyboard 0 Movement Mouse Keybinds 0 Fullscreen 1 Font 32/Tamsyn Map View 50x35 Zoom Use 0% Tactical HUD 0 Map Filters NONE Filters NONE Steam 1 RUN: 1ac2f50e-9cd0-4f4f-b0ac-cde96c719111